bitfinex/quotes_BTCUSD_20250313
["timestamp","ask_amount","ask_price","bid_price","bid_amount"]
[1741875560892,0.01898444,82514.0,82513.0,0.13181999]
[1741875561599,0.01898444,82514.0,82498.0,0.012]
[1741875561803,0.012119,82510.0,82499.0,0.12091295]
[1741875562003,0.01898444,82514.0,82500.0,0.25575396]
[1741875562209,0.01898444,82514.0,82512.0,0.242388]
[1741875562390,0.01898444,82514.0,82501.0,0.13182199]
[1741875562754,0.24236,82522.0,82517.0,0.012118]
[1741875562930,0.242353,82524.0,82508.0,0.01212]
[1741875562931,0.24238,82516.0,82508.0,0.01212]
[1741875563148,0.242385,82514.0,82508.0,0.01212]
[1741875563352,0.242385,82514.0,82513.0,0.004]
[1741875563565,0.242391,82512.0,82505.0,0.13182099]
[1741875563764,0.242385,82514.0,82508.0,0.01212]
[1741875563971,0.242389,82512.0,82506.0,0.242406]
[1741875564172,0.242385,82514.0,82509.0,0.254515]
[1741875564460,0.012119,82513.0,82505.0,0.36210799]
[1741875564656,0.012119,82511.0,82510.0,1.5]
[1741875564878,0.242389,82512.0,82510.0,1.5]
[1741875565095,0.254489,82519.0,82510.0,1.5]
[1741875565304,0.484584,82545.0,82512.0,0.012119]
[1741875565305,0.012117,82525.0,82512.0,0.012119]
[1741875565525,0.0807,82540.0,82533.0,0.012116]
[1741875565743,0.242323,82535.0,82527.0,0.012117]
[1741875565955,0.242316,82537.0,82531.0,0.012116]
[1741875566136,0.242294,82545.0,82536.0,0.012115]
[1741875566137,0.012115,82541.0,82536.0,0.012115]
[1741875566329,0.012116,82531.0,82528.0,0.11970099]
[1741875566562,0.012115,82539.0,82533.0,0.242324]
[1741875566702,0.012115,82539.0,82528.0,0.11970099]
[1741875566703,0.002,82546.0,82535.0,0.012116]
[1741875566900,0.254418,82542.0,82535.0,0.012116]
[1741875567100,0.002,82546.0,82542.0,0.012115]
[1741875567304,0.002,82546.0,82544.0,0.012114]
[1741875567523,0.002,82546.0,82545.0,0.012114]
[1741875567925,0.002,82546.0,82545.0,0.13181499]
[1741875568130,0.002,82546.0,82545.0,0.13302637]
[1741875568532,0.002,82546.0,82545.0,0.13181499]
[1741875568931,0.002,82546.0,82545.0,0.13302626]
[1741875569156,0.002,82546.0,82545.0,0.43302626]
[1741875569390,0.002,82546.0,82545.0,0.43181499]
[1741875570118,0.002,82546.0,82545.0,0.13481499]
[1741875570291,0.002,82546.0,82545.0,0.12270099]
[1741875570527,0.002,82546.0,82545.0,0.14081499]
[1741875570873,0.0021688,82546.0,82545.0,0.13781499]
[1741875571078,0.0021688,82546.0,82545.0,0.44981499]
[1741875571545,0.0021688,82546.0,82545.0,0.43781499]
[1741875571756,0.0021688,82546.0,82545.0,0.11970099]
[1741875571999,0.012115,82542.0,82531.0,0.012116]
[1741875572213,0.242308,82540.0,82532.0,0.12091246]
[1741875572420,0.242312,82539.0,82534.0,0.012116]
[1741875572655,0.012115,82537.0,82521.0,0.427818]
[1741875572862,0.242315,82538.0,82530.0,0.012116]
[1741875573070,0.0021688,82546.0,82533.0,0.012116]
[1741875573279,0.0021688,82546.0,82545.0,0.260406]
[1741875573684,0.0021688,82546.0,82545.0,1.88010699]
[1741875573886,0.0021688,82546.0,82545.0,1.87410699]
[1741875574288,0.0021688,82546.0,82545.0,2.17410699]
[1741875574712,0.0021688,82546.0,82545.0,2.17810699]
[1741875575117,8e-07,82549.0,82548.0,0.56893785]
[1741875575327,8e-07,82549.0,82548.0,0.68863884]
[1741875575530,8e-07,82549.0,82548.0,0.37409799]
[1741875575998,0.6278378,82555.0,82554.0,0.26891885]
[1741875576201,0.0001689,82569.0,82568.0,0.254335]
[1741875576416,0.0001689,82569.0,82562.0,0.012112]
[1741875576625,0.0001689,82569.0,82563.0,0.11970099]
[1741875577010,0.012111,82567.0,82552.0,0.012113]
[1741875577207,0.0001689,82569.0,82557.0,0.242255]
[1741875577362,0.0001689,82569.0,82561.0,0.012112]
[1741875577733,0.01914145,82569.0,82568.0,0.006]
[1741875578669,0.01914145,82569.0,82568.0,0.018111]
[1741875578890,0.01914145,82569.0,82568.0,0.13781199]
[1741875579092,0.01914145,82569.0,82568.0,0.12570099]
[1741875579292,0.01914145,82569.0,82568.0,0.36792499]
[1741875579536,0.01914145,82569.0,82568.0,0.38003599]
[1741875579738,0.01914145,82569.0,82568.0,0.37403599]
[1741875579942,0.01914145,82569.0,82568.0,0.12670099]
[1741875580291,0.27347345,82569.0,82568.0,0.007]
[1741875580487,0.01914145,82569.0,82568.0,0.004]
[1741875580696,0.51914145,82569.0,82568.0,0.004]
[1741875580887,0.53125245,82569.0,82568.0,0.004]
[1741875581092,0.51914145,82569.0,82568.0,0.008]
[1741875581303,0.54145953,82569.0,82568.0,0.38203599]
[1741875581508,0.55261294,82569.0,82568.0,0.004]
[1741875581805,0.55261294,82569.0,82568.0,0.016111]
[1741875582006,0.55261294,82569.0,82568.0,0.37803599]
[1741875582637,0.55261294,82569.0,82568.0,0.11970099]
[1741875582638,0.53029486,82569.0,82568.0,0.11970099]
[1741875582813,0.51914145,82569.0,82568.0,0.12270099]
[1741875583014,0.51914145,82569.0,82568.0,0.13481199]
[1741875583226,0.51914145,82569.0,82568.0,0.12670099]
[1741875583427,0.77347345,82569.0,82568.0,0.007]
[1741875583654,0.77347345,82569.0,82568.0,1.507]
[1741875583832,0.7545009,82569.0,82568.0,1.503]
[1741875584201,0.7545009,82569.0,82568.0,1.5]
[1741875584398,0.7545009,82569.0,82568.0,1.508]
[1741875584798,0.7545009,82569.0,82568.0,1.504]
[1741875585049,0.5122799,82569.0,82568.0,1.504]
[1741875585401,0.52246097,82569.0,82568.0,1.504]
[1741875585789,0.52246097,82569.0,82568.0,1.5]
[1741875585986,0.52246097,82569.0,82568.0,1.501]
[1741875586185,0.55144413,82569.0,82568.0,1.501]
[1741875586623,0.55144413,82569.0,82568.0,1.87503599]
[1741875586822,0.55144413,82569.0,82568.0,1.87603599]
[1741875587042,0.55144413,82569.0,82568.0,1.62170099]
[1741875587238,0.55144413,82569.0,82568.0,1.502]
[1741875587536,0.55144413,82569.0,82568.0,1.87603599]
[1741875587744,8e-05,82573.0,82572.0,0.254322]
[1741875587957,8e-05,82573.0,82572.0,0.36902299]
[1741875588363,8e-05,82573.0,82572.0,1.86902299]
[1741875588881,8e-05,82573.0,82572.0,1.61970099]
[1741875589032,8e-05,82573.0,82572.0,1.63181099]
[1741875589236,8e-05,82573.0,82572.0,1.61970099]
[1741875589446,8e-05,82573.0,82572.0,1.87402299]
[1741875589649,8e-05,82573.0,82572.0,1.61970099]
[1741875589849,0.254399,82573.0,82572.0,1.5]
[1741875590646,8e-05,82573.0,82572.0,1.62570099]
[1741875590828,8e-05,82573.0,82572.0,1.87402299]
[1741875591591,8e-05,82573.0,82572.0,1.88002299]
[1741875592196,8e-05,82573.0,82572.0,1.87902299]
[1741875592398,0.4194,82710.0,82628.0,0.55415]
[1741875592602,0.012098,82657.0,82628.0,0.60914915]
[1741875592830,0.03543233,82650.0,82628.0,0.30914915]
[1741875593079,0.03543233,82650.0,82628.0,0.0049999]
[1741875593080,0.012101,82636.0,82628.0,0.0049999]
[1741875593286,0.01365616,82630.0,82628.0,0.0049999]
[1741875593442,0.241997,82646.0,82627.0,0.0171019]
[1741875593600,0.0809,82636.0,82623.0,0.242063]
[1741875593805,0.0809,82636.0,82625.0,0.012102]
[1741875594025,0.0121,82641.0,82624.0,0.012103]
[1741875594026,0.253994,82679.0,82668.0,0.0049999]
[1741875594227,0.254027,82668.0,82659.0,0.0049999]
[1741875594531,0.254027,82668.0,82646.0,0.0049999]
[1741875594532,0.012097,82660.0,82646.0,0.0049999]
[1741875594873,0.012098,82655.0,82652.0,0.04999925]
[1741875595082,0.012099,82646.0,82644.0,0.05499915]
[1741875595494,0.012099,82646.0,82645.0,0.0049999]
[1741875595699,0.241978,82652.0,82648.0,0.0049999]
[1741875595904,0.012097,82660.0,82655.0,0.0049999]
[1741875596109,0.254064,82656.0,82655.0,0.05499915]
[1741875596311,0.012099,82646.0,82645.0,0.0049999]
[1741875596514,0.24199,82648.0,82647.0,0.0049999]
[1741875596711,0.24199,82648.0,82645.0,0.0049999]
[1741875596712,0.012099,82646.0,82645.0,0.0049999]
[1741875597037,0.254107,82642.0,82641.0,0.05499915]
[1741875597301,0.242007,82642.0,82641.0,0.17470014]
[1741875597537,0.254107,82642.0,82641.0,0.0049999]
[1741875597750,0.254113,82640.0,82637.0,0.04999925]
[1741875597952,0.012101,82634.0,82631.0,0.0049999]
[1741875598153,0.254135,82633.0,82632.0,0.0049999]
[1741875598367,0.242036,82634.0,82633.0,0.05439915]
[1741875598582,0.25411,82641.0,82639.0,0.0043999]
[1741875598811,0.012102,82627.0,82612.0,0.012104]
[1741875599034,0.012102,82626.0,82625.0,0.0043999]
[1741875599233,0.254166,82623.0,82622.0,0.0043999]
[1741875599433,0.254193,82614.0,82613.0,0.11970099]
[1741875599638,0.254193,82614.0,82613.0,0.12410089]
[1741875599812,0.242075,82619.0,82617.0,0.04999925]
[1741875600020,0.254178,82619.0,82618.0,0.0043999]
[1741875600424,0.012104,82612.0,82611.0,0.05439915]
[1741875600602,0.012105,82610.0,82609.0,0.0043999]
[1741875600783,0.254209,82609.0,82607.0,0.0043999]
[1741875600988,0.254236,82600.0,82599.0,0.11255598]
[1741875601187,0.254236,82600.0,82599.0,0.10815608]
[1741875601780,0.254285,82584.0,82578.0,0.0043999]
[1741875602016,0.242218,82571.0,82570.0,0.0043999]
[1741875602193,0.254328,82571.0,82570.0,0.0043999]
[1741875602396,0.012111,82569.0,82568.0,0.0003382]
[1741875603638,0.088311,82569.0,82568.0,0.0003382]
[1741875603850,0.15617001,82569.0,82568.0,0.0003382]
[1741875603995,0.15617001,82569.0,82568.0,2e-07]
[1741875603996,0.17844879,82569.0,82568.0,2e-07]
[1741875604204,0.012112,82561.0,82560.0,8e-08]
[1741875604405,0.06941893,82561.0,82560.0,8e-08]
[1741875604623,0.31166393,82561.0,82560.0,8e-08]
[1741875604924,0.012114,82548.0,82539.0,0.242309]
[1741875605147,0.012113,82554.0,82547.0,0.0043999]
[1741875605337,0.254394,82549.0,82547.0,0.0043999]
[1741875605876,0.254437,82535.0,82534.0,0.0043999]
[1741875606080,0.254458,82528.0,82527.0,0.0043999]
[1741875606284,0.012117,82525.0,82523.0,0.0043999]
[1741875606488,0.012118,82520.0,82519.0,0.0043999]
[1741875606687,0.254478,82522.0,82521.0,0.04999925]
[1741875606979,0.012118,82521.0,82520.0,0.0043999]
[1741875607202,0.254492,82517.0,82516.0,0.0043999]
[1741875607429,0.012119,82513.0,82510.0,0.0043999]
[1741875607639,0.012119,82513.0,82512.0,0.05033685]
[1741875608055,0.012119,82513.0,82512.0,0.0003376]
[1741875608714,0.07294899,82513.0,82512.0,0.0003376]
[1741875609047,0.254507,82512.0,82511.0,0.0005376]
[1741875609258,0.31537371,82512.0,82511.0,0.0005376]
[1741875609890,0.03331272,82513.0,82511.0,0.0005376]
[1741875610093,0.254507,82512.0,82511.0,0.0005376]
[1741875610295,0.31537371,82512.0,82511.0,0.0005376]
[1741875610503,0.33758119,82512.0,82511.0,6e-07]
[1741875610713,0.254569,82492.0,82491.0,0.0041391]
[1741875610887,0.012122,82492.0,82491.0,0.05413835]
[1741875611292,0.242434,82497.0,82491.0,0.0041391]
[1741875611551,0.254555,82497.0,82496.0,0.04999925]
[1741875611751,0.01110524,82512.0,82502.0,0.0041391]
[1741875611953,0.242404,82507.0,82501.0,0.0041391]
[1741875612166,0.254538,82502.0,82500.0,0.0041391]
[1741875612365,0.242427,82499.0,82498.0,0.04999925]
[1741875612583,0.012122,82491.0,82490.0,0.0041391]
[1741875612789,0.254581,82488.0,82487.0,0.0041391]
[1741875613440,0.254581,82488.0,82480.0,0.0003378]
[1741875613441,0.254588,82486.0,82483.0,0.0041391]
[1741875613609,0.254588,82486.0,82480.0,0.0003378]
[1741875613847,0.012123,82487.0,82485.0,0.05033705]
[1741875614017,0.012122,82488.0,82487.0,0.0041391]
[1741875614018,0.254582,82488.0,82487.0,0.0041391]
[1741875614338,0.254582,82488.0,82487.0,0.05813835]
[1741875614540,0.012121,82496.0,82494.0,0.05413835]
[1741875614727,0.012121,82495.0,82494.0,0.05413835]
[1741875615580,0.012121,82495.0,82494.0,0.04999925]
[1741875615784,0.254588,82486.0,82485.0,0.0003378]
[1741875615986,0.254588,82486.0,82485.0,0.05433705]
[1741875616195,0.242459,82488.0,82487.0,0.05353835]
[1741875616399,0.0476,82516.0,82490.0,0.242453]
[1741875616400,0.012121,82499.0,82490.0,0.242453]
[1741875616613,0.012121,82501.0,82500.0,0.0041391]
[1741875616820,0.012122,82490.0,82489.0,0.0041391]
[1741875617033,0.254588,82486.0,82485.0,0.0044769]
[1741875617272,0.254588,82486.0,82485.0,0.05373705]
[1741875617471,0.254588,82486.0,82485.0,0.0043378]
[1741875618212,0.31740151,82486.0,82485.0,0.0043378]
[1741875619320,0.31740151,82486.0,82485.0,0.0003378]
[1741875619521,0.31740151,82486.0,82485.0,0.0013378]
[1741875619787,0.31740151,82486.0,82485.0,0.0003378]
[1741875620159,0.255588,82486.0,82485.0,0.0003378]
[1741875620368,0.254588,82486.0,82485.0,0.0003378]
[1741875620578,0.31740151,82486.0,82485.0,0.0003378]
[1741875620781,0.31840151,82486.0,82485.0,0.0003378]
[1741875620983,0.3373954,82486.0,82485.0,0.0003378]
[1741875621777,0.31840151,82486.0,82485.0,0.0003378]
[1741875622045,0.254588,82486.0,82485.0,0.0003378]
[1741875622174,0.31740151,82486.0,82485.0,0.0003378]
[1741875622375,0.31740151,82486.0,82485.0,0.0013378]
[1741875623076,0.254604,82481.0,82480.0,6e-07]
[1741875623276,0.31778497,82481.0,82480.0,6e-07]
[1741875623723,0.254631,82472.0,82471.0,0.0002006]
[1741875623900,0.31847351,82472.0,82471.0,0.0002006]
[1741875625710,0.39527351,82472.0,82471.0,0.0002006]
[1741875626039,0.39527351,82472.0,82471.0,6e-07]
[1741875626453,0.46037188,82472.0,82471.0,6e-07]
[1741875626653,0.48246399,82472.0,82471.0,6e-07]
[1741875627237,0.49145331,82472.0,82471.0,6e-07]
[1741875627439,0.24894731,82472.0,82471.0,6e-07]
[1741875627639,0.04109048,82472.0,82471.0,6e-07]
[1741875627848,0.03421711,82472.0,82471.0,6e-07]
[1741875628057,0.02209211,82472.0,82471.0,6e-07]
[1741875628258,0.02209211,82472.0,82471.0,0.0041397]
[1741875628515,0.02209211,82472.0,82471.0,0.2587737]
[1741875628722,0.02209211,82472.0,82471.0,0.37847469]
[1741875628922,0.02209211,82472.0,82471.0,0.42787334]
[1741875629063,0.02509211,82472.0,82471.0,0.17323934]
[1741875629472,0.012125,82469.0,82468.0,0.05353835]
[1741875629677,0.25464,82469.0,82468.0,0.05353835]
[1741875630528,0.25464,82469.0,82468.0,0.0041391]
[1741875630952,0.25464,82469.0,82457.0,0.24255]
[1741875630953,0.012125,82468.0,82458.0,0.0041391]
[1741875631156,0.254661,82463.0,82461.0,0.04939925]
[1741875631316,0.012125,82468.0,82461.0,0.04939925]
[1741875631514,0.03339236,82469.0,82467.0,0.242521]
[1741875631715,0.03339236,82469.0,82468.0,0.06566335]
[1741875631946,0.03339236,82469.0,82468.0,0.18536434]
[1741875632323,0.01113102,82469.0,82468.0,0.19136434]
[1741875632553,0.242469,82485.0,82468.0,0.19136434]
[1741875632554,0.012124,82481.0,82476.0,0.06152325]
[1741875632794,0.012124,82477.0,82476.0,0.04939925]
[1741875632997,0.254625,82474.0,82470.0,0.05353835]
[1741875633202,0.012125,82470.0,82469.0,0.0041391]
[1741875633401,0.242496,82476.0,82474.0,0.0041391]
[1741875633601,0.254631,82472.0,82471.0,0.04939925]
[1741875633832,0.012125,82469.0,82468.0,0.006]
[1741875634017,0.254661,82462.0,82461.0,0.05353835]
[1741875634177,0.254661,82463.0,82461.0,0.05353835]
[1741875634577,0.02234046,82462.0,82461.0,0.06566435]
[1741875634841,0.02234046,82462.0,82461.0,0.05353835]
[1741875635216,0.28816392,82462.0,82461.0,0.05353835]
[1741875635694,0.03350292,82462.0,82461.0,0.18536534]
[1741875635823,0.01116246,82462.0,82461.0,0.18536534]
[1741875636033,0.01116246,82462.0,82461.0,0.05353835]
[1741875636240,0.01116246,82462.0,82461.0,0.06566435]
[1741875636443,0.01116246,82462.0,82461.0,0.05353835]
[1741875636640,0.02328846,82462.0,82461.0,0.006]
[1741875636846,0.02328846,82462.0,82461.0,0.05953835]
[1741875637064,0.02328846,82462.0,82461.0,0.006]
[1741875637783,0.08786617,82462.0,82461.0,0.006]
[1741875638151,0.08786617,82462.0,82451.0,0.0003382]
[1741875638152,0.254693,82452.0,82451.0,0.0003382]
[1741875638348,0.254693,82452.0,82451.0,0.04973745]
[1741875638587,0.254693,82452.0,82451.0,0.0003382]
[1741875638987,0.012127,82458.0,82456.0,0.0041391]
[1741875639198,0.242564,82453.0,82451.0,0.05387655]
[1741875639387,0.012128,82452.0,82451.0,0.0003382]
[1741875639683,0.012128,82452.0,82451.0,0.0023382]
[1741875639916,0.012128,82452.0,82451.0,0.0003382]
[1741875640509,0.02329046,82452.0,82451.0,0.0003382]
[1741875641072,0.06474433,82452.0,82451.0,0.0003382]
[1741875641471,0.03361588,82452.0,82451.0,0.0166053]
[1741875641688,0.04574388,82452.0,82451.0,0.0044773]
[1741875641889,0.05439394,82452.0,82451.0,0.0003382]
[1741875642559,0.11970705,82452.0,82451.0,0.0003382]
[1741875643807,0.11970705,82452.0,82451.0,2e-07]
[1741875644970,0.11970705,82452.0,82446.0,0.0041391]
[1741875644971,0.012128,82449.0,82446.0,0.0041391]
[1741875645188,0.242594,82443.0,82440.0,0.0041391]
[1741875645389,0.254739,82437.0,82436.0,0.05353835]
[1741875645730,0.25566781,82437.0,82436.0,0.05353835]
[1741875645934,0.00092881,82437.0,82436.0,0.05353835]
[1741875646131,0.05839255,82437.0,82436.0,0.42798134]
[1741875647632,0.03361588,82437.0,82436.0,0.42798134]
[1741875647801,0.03361588,82437.0,82436.0,0.85998134]
[1741875648004,0.03361588,82437.0,82436.0,0.73018209]
[1741875648228,0.03361588,82437.0,82436.0,0.77958134]
[1741875648628,0.03361588,82437.0,82436.0,0.07066835]
[1741875648984,0.03987862,82437.0,82436.0,0.31328035]
[1741875649228,0.0408104,82437.0,82436.0,0.30828035]
[1741875649459,0.03554766,82437.0,82436.0,0.31328035]
[1741875649715,0.03554766,82437.0,82436.0,0.07066835]
[1741875649989,0.05351889,82437.0,82436.0,0.19036934]
[1741875650237,0.05258711,82437.0,82436.0,0.16301566]
[1741875650483,0.03461588,82437.0,82436.0,0.16301566]
[1741875650902,0.03461588,82437.0,82436.0,0.16422864]
[1741875651104,0.03461588,82437.0,82436.0,0.16301566]
[1741875653057,0.27722488,82437.0,82436.0,0.12470099]
[1741875653263,0.28935488,82437.0,82436.0,0.005]
[1741875653439,0.2956715,82437.0,82436.0,0.00764]
[1741875654199,0.2946715,82437.0,82436.0,0.00264]
[1741875654401,0.44150089,82437.0,82436.0,0.00264]
[1741875654673,0.36108804,82437.0,82436.0,0.00204]
[1741875655213,0.66108804,82437.0,82436.0,0.00204]
[1741875655851,0.0399325,82437.0,82436.0,0.00604]
[1741875656049,0.0520625,82437.0,82436.0,0.00204]
[1741875656171,0.254755,82432.0,82431.0,0.0008]
[1741875656581,0.28347354,82432.0,82431.0,0.0008]
[1741875657049,0.02871854,82432.0,82431.0,0.28174267]
[1741875657251,0.02871854,82432.0,82431.0,0.02698467]
[1741875657457,0.02245342,82432.0,82431.0,0.02698467]
[1741875657677,0.02245342,82432.0,82431.0,0.02998467]
[1741875657879,0.04066105,82432.0,82431.0,0.04211567]
[1741875658082,0.03361588,82432.0,82431.0,0.04211567]
[1741875659583,0.03361588,82432.0,82431.0,0.16181666]
[1741875660185,8.8e-07,82432.0,82431.0,0.17635751]
[1741875660385,8.8e-07,82432.0,82431.0,0.17757036]
[1741875660586,8.8e-07,82432.0,82431.0,0.52487036]
[1741875660919,0.0001694,82451.0,82431.0,0.52487036]
[1741875660920,0.0001694,82451.0,82450.0,0.29542452]
[1741875661209,4e-07,82451.0,82450.0,0.79772551]
[1741875661616,0.10085094,82480.0,82470.0,0.012125]
[1741875661617,7.3e-07,82471.0,82470.0,0.012125]
[1741875661787,7.3e-07,82471.0,82470.0,0.70052266]
[1741875662193,7.3e-07,82471.0,82470.0,0.71506351]
[1741875663274,7.3e-07,82471.0,82470.0,0.70252266]
[1741875663497,7.3e-07,82471.0,82470.0,0.71506351]
[1741875663697,1.1e-07,82487.0,82486.0,0.58077267]
[1741875663903,1.1e-07,82487.0,82486.0,0.71501451]
[1741875664484,1.1e-07,82487.0,82486.0,2.21501451]
[1741875665111,1.1e-07,82487.0,82486.0,1.90047366]
[1741875666039,1.1e-07,82487.0,82486.0,2.21501451]
[1741875666418,1.1e-07,82487.0,82486.0,2.22101451]
[1741875667197,1.1e-07,82487.0,82486.0,2.21501451]
[1741875667749,1.1e-07,82487.0,82486.0,2.22001451]
[1741875668062,1.1e-07,82487.0,82486.0,0.70547366]
[1741875668181,1.1e-07,82487.0,82486.0,0.12470099]
[1741875668381,1.1e-07,82487.0,82486.0,0.03118467]
[1741875668382,0.25458511,82487.0,82486.0,0.03118467]
[1741875668827,1.1e-07,82487.0,82486.0,0.03118467]
[1741875669141,1.1e-07,82487.0,82486.0,0.005]
[1741875669342,0.24246211,82487.0,82486.0,0.03718467]
[1741875669585,0.25458511,82487.0,82486.0,0.02618467]
[1741875669811,0.242503,82473.0,82470.0,0.02618467]
[1741875670012,0.012126,82462.0,82461.0,0.02618467]
[1741875670234,0.254702,82449.0,82443.0,0.24259]
[1741875670455,0.254701,82450.0,82449.0,0.02618467]
[1741875670664,0.254701,82450.0,82429.0,0.0003386]
[1741875670665,0.012128,82449.0,82442.0,0.02618467]
[1741875670886,0.012128,82449.0,82436.0,0.02618467]
[1741875671092,0.012128,82449.0,82440.0,0.02618467]
[1741875671286,0.01766738,82449.0,82440.0,0.02618467]
[1741875671705,0.08320115,82449.0,82431.0,0.0008]
[1741875671911,0.254737,82438.0,82437.0,0.02618467]
[1741875672111,0.242598,82441.0,82439.0,0.02618467]
[1741875672321,0.01213,82440.0,82439.0,0.02618467]
[1741875672490,0.01671997,82440.0,82439.0,0.02618467]
[1741875673037,0.254755,82432.0,82431.0,0.02698467]
[1741875673240,0.254755,82432.0,82431.0,0.0008]
[1741875673458,0.254755,82432.0,82431.0,0.02698467]
[1741875673831,0.254755,82432.0,82431.0,0.0008]
[1741875674344,0.012131,82433.0,82431.0,0.0008]
[1741875674666,0.254748,82435.0,82434.0,0.02618467]
[1741875674844,0.01358338,82444.0,82434.0,0.02618467]
[1741875674845,0.242585,82446.0,82444.0,0.02618467]
[1741875674984,0.012128,82448.0,82444.0,0.02618467]
[1741875675190,0.012128,82448.0,82439.0,0.02618467]
[1741875675397,0.012129,82441.0,82437.0,0.02618467]
[1741875675610,0.254755,82432.0,82431.0,0.0018]
[1741875675819,0.254755,82432.0,82431.0,0.02698467]
[1741875676019,0.242615,82435.0,82431.0,0.02698467]
[1741875676246,0.243578,82448.0,82444.0,0.02618467]
[1741875676449,0.242597,82442.0,82439.0,0.02618467]
[1741875676653,0.254736,82438.0,82437.0,0.02618467]
[1741875676861,0.254755,82432.0,82431.0,0.0028]
[1741875677193,0.254755,82432.0,82431.0,0.02698467]
[1741875677622,0.254755,82432.0,82431.0,0.0008]
[1741875678065,0.35544,82432.0,82431.0,0.0008]
[1741875678272,0.62153944,82432.0,82431.0,1e-06]
[1741875678687,0.64624722,82432.0,82431.0,1e-06]
[1741875678894,0.554761,82430.0,82429.0,6e-07]
[1741875679095,0.62169261,82430.0,82429.0,6e-07]
[1741875679307,0.542647,82424.0,82423.0,2e-07]
[1741875679514,0.63669302,82424.0,82423.0,2e-07]
[1741875680128,0.64169302,82424.0,82423.0,2e-07]
[1741875680330,0.65281749,82424.0,82423.0,2e-07]
[1741875680536,0.79178906,82424.0,82423.0,2e-07]
[1741875680867,0.86868906,82424.0,82423.0,2e-07]
[1741875681088,0.86868906,82424.0,82402.0,0.0003378]
[1741875681089,0.554844,82403.0,82402.0,0.0003378]
[1741875681297,0.62376313,82403.0,82402.0,0.0003378]
[1741875681511,0.63703525,82403.0,82402.0,0.0003378]
[1741875681840,0.6560483,82403.0,82402.0,0.0003378]
[1741875682821,0.6590483,82403.0,82402.0,0.0003378]
[1741875683040,0.64003525,82403.0,82402.0,0.0003378]
[1741875683254,0.02840712,82403.0,82402.0,0.0003378]
[1741875683469,0.242678,82414.0,82406.0,0.012135]
[1741875683641,0.242678,82414.0,82402.0,0.0124728]
[1741875683642,0.254815,82413.0,82407.0,0.02618467]
[1741875683781,0.242655,82422.0,82413.0,0.02318467]
[1741875683988,0.242652,82423.0,82413.0,0.02318467]
[1741875684187,0.012134,82413.0,82408.0,0.02318467]
[1741875684387,0.012134,82413.0,82412.0,0.02318467]
[1741875685069,0.254844,82403.0,82402.0,0.0003378]
[1741875685879,0.32376313,82403.0,82402.0,0.0003378]
[1741875686305,0.254844,82403.0,82402.0,0.0003378]
[1741875686704,0.255844,82403.0,82402.0,0.0003378]
[1741875686904,0.243709,82403.0,82402.0,0.02352247]
[1741875687110,0.255844,82403.0,82402.0,0.02352247]
[1741875687525,0.255844,82403.0,82402.0,0.0003378]
[1741875687889,0.32476313,82403.0,82402.0,0.0003378]
[1741875688455,0.32676313,82403.0,82402.0,0.0003378]
[1741875688677,0.32376313,82403.0,82402.0,0.0003378]
[1741875689084,0.01901128,82404.0,82402.0,0.0003378]
[1741875689298,0.242696,82408.0,82405.0,0.02318467]
[1741875689299,0.254838,82406.0,82405.0,0.02318467]
[1741875689500,0.012134,82409.0,82408.0,0.02318467]
[1741875689657,0.012133,82414.0,82413.0,0.02318467]
[1741875689857,0.254823,82410.0,82409.0,0.02318467]
[1741875690071,0.242709,82403.0,82402.0,0.0003378]
[1741875690229,0.242689,82410.0,82402.0,0.02352247]
[1741875690459,0.242678,82414.0,82402.0,0.02352247]
[1741875690460,0.242678,82414.0,82413.0,0.02318467]
[1741875690677,0.242678,82414.0,82407.0,0.012134]
[1741875690678,0.242683,82412.0,82407.0,0.02318467]
[1741875690907,0.01316487,82431.0,82402.0,0.0003378]
[1741875690908,0.012135,82403.0,82402.0,0.0003378]
[1741875691136,0.012135,82403.0,82402.0,0.02352247]
[1741875691590,0.012135,82403.0,82402.0,0.0003378]
[1741875692036,0.012135,82403.0,82402.0,0.02352247]
[1741875692276,0.012135,82403.0,82402.0,0.0003378]
[1741875692790,0.012135,82403.0,82402.0,0.0023378]
[1741875693000,0.012135,82403.0,82402.0,0.0003378]
[1741875693396,0.38105413,82403.0,82402.0,0.0023378]
[1741875693598,0.254853,82401.0,82391.0,0.0008]
[1741875693914,0.55486,82398.0,82397.0,8e-07]
[1741875694114,0.62414732,82398.0,82397.0,8e-07]
[1741875695668,0.64736458,82398.0,82397.0,8e-07]
[1741875695868,0.27707726,82398.0,82397.0,8e-07]
[1741875696193,0.28818525,82398.0,82397.0,8e-07]
[1741875696397,0.35947257,82398.0,82397.0,8e-07]
[1741875697539,0.29018525,82398.0,82397.0,8e-07]
[1741875698629,0.39322178,82398.0,82397.0,8e-07]
[1741875698769,0.32593446,82398.0,82397.0,8e-07]
[1741875698968,0.32393446,82398.0,82397.0,8e-07]
[1741875699403,0.242736,82394.0,82393.0,0.02314547]
[1741875699796,0.254879,82392.0,82391.0,0.0008]
[1741875700439,0.31284547,82392.0,82391.0,0.0008]
[1741875701590,0.3418545,82392.0,82391.0,0.0008]
[1741875701762,0.6418545,82392.0,82391.0,0.0008]
[1741875701968,0.254887,82389.0,82388.0,0.0127586]
[1741875702168,0.312137,82386.0,82385.0,4e-07]
[1741875702377,0.38230819,82386.0,82385.0,4e-07]
[1741875702576,0.38230819,82386.0,82368.0,0.0003382]
[1741875702577,0.554949,82369.0,82368.0,2e-07]
[1741875702777,0.62637277,82369.0,82368.0,2e-07]
[1741875703192,0.554958,82366.0,82365.0,8e-07]
[1741875703345,0.62660288,82366.0,82365.0,8e-07]
[1741875703541,0.62660288,82366.0,82353.0,0.0003386]
[1741875703542,0.254996,82354.0,82353.0,0.0003386]
[1741875703794,0.012142,82355.0,82353.0,0.0003386]
[1741875703982,0.012142,82355.0,82354.0,0.02314547]
[1741875704193,0.254993,82355.0,82354.0,0.02314547]
[1741875704792,0.31295947,82355.0,82354.0,0.02314547]
[1741875705518,0.012142,82354.0,82353.0,0.02348407]
[1741875705920,0.05796647,82355.0,82354.0,0.02314547]
[1741875706127,0.06907446,82355.0,82354.0,0.27814147]
[1741875706277,0.06907446,82355.0,82354.0,0.39784246]
[1741875706659,0.06907446,82355.0,82354.0,0.76098331]
[1741875706855,0.03332525,82355.0,82354.0,0.76098331]
[1741875707321,0.03332525,82355.0,82354.0,2.26098331]
[1741875708089,0.01110799,82355.0,82354.0,2.26098331]